bitfinex-derivatives/quotes_ETHF0:USTF0_20250926
["timestamp","ask_amount","ask_price","bid_price","bid_amount"]
[1758901118057,0.4134,3950.9,3950.8,0.9616]
[1758901118353,0.4134,3950.9,3950.8,0.26]
[1758901118947,0.50609792,3950.9,3950.8,0.26]
[1758901119148,0.86869,3950.9,3950.8,0.26]
[1758901119549,0.96136925,3950.9,3950.8,0.26]
[1758901119851,0.4134,3950.3,3950.2,3.2103019]
[1758901120051,0.4134,3950.3,3950.2,0.0025019]
[1758901120350,0.4134,3950.3,3950.2,0.2625019]
[1758901123858,0.86876,3950.3,3950.2,0.7178719]
[1758901124051,0.86876,3950.3,3950.2,0.2625019]
[1758901124350,0.86876,3950.3,3950.2,0.0025019]
[1758901124551,0.4134,3950.3,3950.2,0.0025019]
[1758901124851,0.86876,3950.3,3950.2,0.0025019]
[1758901126352,5.86876,3950.3,3950.2,0.0025019]
[1758901126655,0.4554,3949.9,3949.8,3.2078]
[1758901126845,0.8688,3949.9,3949.8,3.2078]
[1758901127748,0.8688,3949.9,3949.8,3.21065907]
[1758901127946,5.8688,3949.9,3949.8,0.00285907]
[1758901128152,0.4134,3948.6,3948.4,0.45558]
[1758901128352,0.4134,3948.6,3948.5,0.71557]
[1758901129045,0.41615512,3948.6,3948.5,0.71759785]
[1758901129252,0.00275512,3948.6,3948.5,0.96639785]
[1758901129556,0.00275512,3948.6,3948.5,5.96639785]
[1758901130147,0.00275512,3948.6,3948.5,5.71759785]
[1758901130353,0.41615512,3948.6,3948.5,0.71759785]
[1758901131165,0.87170512,3948.6,3948.5,0.26202785]
[1758901131462,0.87170512,3948.6,3948.5,0.71759785]
[1758901131852,0.00275512,3948.6,3948.5,0.96639785]
[1758901133862,0.87170512,3948.6,3948.5,0.71758785]
[1758901134054,0.41615512,3948.6,3948.5,0.71758785]
[1758901134362,0.87170512,3948.6,3948.5,0.26202785]
[1758901134561,0.87170512,3948.6,3948.5,0.71758785]
[1758901134758,0.87170512,3948.6,3948.5,0.26202785]
[1758901134961,0.87170512,3948.6,3948.5,0.71758785]
[1758901135151,0.87170512,3948.6,3948.5,0.26202785]
[1758901135358,0.41615512,3948.6,3948.5,0.71758785]
[1758901135554,0.41615512,3948.6,3948.5,0.96638785]
[1758901135760,0.00275512,3948.6,3948.5,0.96638785]
[1758901136355,0.41615512,3948.6,3948.5,0.71758785]
[1758901136763,0.41615512,3948.6,3948.5,0.96638785]
[1758901137063,0.00275512,3948.6,3948.5,0.96638785]
[1758901138457,0.00275512,3948.6,3948.5,5.96638785]
[1758901139464,0.00275512,3948.6,3948.5,9.17418785]
[1758901139763,0.45545,3949.4,3949.3,0.45545]
[1758901139962,0.86885,3949.4,3949.3,0.71645]
[1758901140264,1.24722878,3949.4,3949.3,0.99596]
[1758901140563,1.15765289,3949.4,3949.3,1.25706]
[1758901140756,0.70220289,3949.4,3949.3,1.25706]
[1758901140956,0.00310289,3949.4,3949.3,1.50586]
[1758901141261,0.87195289,3949.4,3949.3,0.8016]
[1758901141461,0.2857,3949.1,3949.0,0.2795]
[1758901141765,0.6991,3949.1,3949.0,0.99599]
[1758901142063,1.15458,3949.1,3949.0,0.99599]
[1758901142267,0.4134,3949.1,3949.0,1.26219]
[1758901142563,1.13785289,3949.4,3949.3,0.74166]
[1758901142860,0.68240289,3949.4,3949.3,1.00786]
[1758901143064,1.13785289,3949.4,3949.3,1.00786]
[1758901143369,0.68240289,3949.4,3949.3,1.00786]
[1758901143660,1.40215289,3949.4,3949.3,0.5524]
[1758901143863,1.494945,3949.4,3949.3,0.2862]
[1758901144062,1.39907,3949.2,3949.1,0.74167]
[1758901144266,1.39907,3949.2,3949.1,0.2862]
[1758901144464,1.39907,3949.2,3949.1,0.74168]
[1758901144966,0.9436,3949.2,3949.1,0.74168]
[1758901145568,0.4461,3949.0,3948.9,3.4773]
[1758901145762,0.4037,3949.3,3948.9,4.2644]
[1758901146063,1.30529,3949.0,3948.9,3.7383]
[1758901146259,1.59509,3949.0,3948.9,3.7383]
[1758901146561,1.1396,3949.0,3948.9,4.19381]
[1758901146759,1.1396,3949.0,3948.9,4.45981]
[1758901146954,0.4037,3949.0,3948.9,4.71991]
[1758901147171,0.49661831,3949.0,3948.9,4.71991]
[1758901147463,0.45546,3949.3,3949.2,0.45546]
[1758901147662,1.07063079,3949.3,3949.2,1.51207]
[1758901147871,0.00310289,3949.4,3949.2,1.51207]
[1758901147872,0.00310289,3949.4,3949.3,1.25106]
[1758901148057,0.00310289,3949.4,3949.3,4.45886]
[1758901148565,0.0253,3950.2,3950.1,0.99087]
[1758901148762,0.0253,3950.2,3950.1,1.51197]
[1758901148961,0.0253,3950.2,3950.1,1.7130054]
[1758901149157,0.0253,3950.2,3950.1,1.51197]
[1758901149362,0.712,3950.2,3950.1,1.25187]
[1758901149667,0.43226857,3950.2,3950.1,1.25187]
[1758901149966,1.00506857,3950.2,3950.1,0.5305]
[1758901150270,0.4037,3950.1,3950.0,0.99087]
[1758901150462,0.02856857,3950.2,3950.1,0.2601]
[1758901150661,0.02856857,3950.2,3950.1,0.7956]
[1758901150876,0.12153381,3950.2,3950.1,0.7956]
[1758901151767,0.12153381,3950.2,3950.1,0.5355]
[1758901151768,0.80823381,3950.2,3950.1,0.5355]
[1758901151970,0.4529,3949.5,3949.3,3.2078]
[1758901152271,0.4037,3949.3,3949.1,0.45548]
[1758901152457,1.07096847,3949.2,3949.1,0.45548]
[1758901152657,1.07096847,3949.2,3949.1,0.71548]
[1758901152967,1.07096847,3949.2,3949.1,0.97558]
[1758901153267,1.07096847,3949.2,3949.1,0.71548]
[1758901153965,0.4037,3949.6,3949.5,0.45543]
[1758901154269,1.07113255,3949.6,3949.5,0.71543]
[1758901154969,0.4037,3950.0,3949.9,0.71549]
[1758901155272,1.23429584,3950.0,3949.9,0.71539]
[1758901156371,1.23429584,3950.0,3949.2,0.2601]
[1758901156665,3.2078,3949.8,3949.3,0.26]
[1758901156860,1.07119584,3949.7,3949.6,0.45542]
[1758901157062,1.07119584,3949.7,3949.6,0.71542]
[1758901158266,0.0253,3950.1,3950.0,0.45537]
[1758901158467,0.429,3950.1,3950.0,0.71537]
[1758901158668,1.09654969,3950.1,3950.0,0.71537]
[1758901160359,0.52201903,3950.1,3950.0,0.71537]
[1758901160868,0.11831903,3950.1,3950.0,0.97547]
[1758901161064,0.0253,3950.1,3950.0,0.97547]
[1758901161371,0.0253,3950.1,3950.0,9.25507]
[1758901162161,0.4037,3950.9,3950.2,2.73211]
[1758901162366,3.7746,3951.5,3950.8,1.13819]
[1758901162566,0.66683889,3951.4,3951.3,0.45522]
[1758901162769,0.66683889,3951.4,3951.3,0.71522]
[1758901163168,1.07053889,3951.4,3951.3,0.71775789]
[1758901163470,1.07269061,3951.4,3951.3,0.71775789]
[1758901164269,1.07269061,3951.4,3951.3,0.26253789]
[1758901164578,1.07269061,3951.4,3950.8,0.45528]
[1758901164579,0.4037,3950.9,3950.8,0.45528]
[1758901164766,0.4037,3950.9,3950.8,0.71528]
[1758901165072,0.4037,3950.9,3950.8,0.26]
[1758901165664,0.4037,3950.9,3950.8,0.00325894]
[1758901165877,0.4037,3950.4,3950.3,0.45533]
[1758901166170,0.4037,3950.4,3950.3,0.52333]
[1758901166961,0.4037,3950.4,3950.3,0.52658591]
[1758901167770,0.85902,3950.4,3950.3,0.07125591]
[1758901167976,0.95193473,3950.4,3950.3,0.07125591]
[1758901168369,1.52571776,3950.4,3950.3,0.07125591]
[1758901169686,1.52572776,3950.4,3950.3,0.07125591]
[1758901169879,1.07039776,3950.4,3950.3,0.52659591]
[1758901170071,1.52572776,3950.4,3950.3,0.07125591]
[1758901170378,1.07039776,3950.4,3950.3,0.52659591]
[1758901171373,0.49661473,3950.4,3950.3,0.00325591]
[1758901171580,0.49661473,3950.4,3950.3,0.45859591]
[1758901172776,0.4037,3950.4,3950.3,0.70859591]
[1758901173177,0.49667505,3950.4,3950.3,0.70859591]
[1758901173380,0.49667505,3950.4,3950.3,0.45859591]
[1758901174182,0.61836,3951.0,3950.9,0.45527]
[1758901174183,0.1631,3951.0,3950.9,0.45527]
[1758901174377,0.8303687,3951.0,3950.9,0.45527]
[1758901174568,1.2284687,3951.0,3950.9,0.45527]
[1758901175172,1.7734687,3951.0,3950.9,0.74317]
[1758901175374,1.1991903,3951.0,3950.9,0.74317]
[1758901175882,0.3981,3951.0,3950.9,1.27047]
[1758901176281,0.827,3951.0,3950.9,1.02047]
[1758901176676,0.3981,3951.0,3950.9,1.02047]
[1758901176877,0.26525172,3951.4,3951.3,0.74312]
[1758901177077,1.33064834,3951.4,3951.3,1.00312]
[1758901177386,0.00215172,3951.4,3951.3,0.96522]
[1758901177681,0.40025172,3951.4,3951.3,0.71522]
[1758901178475,0.00215172,3951.4,3951.3,0.96522]
[1758901178684,0.00215172,3951.4,3951.3,5.96522]
[1758901179483,0.00215172,3951.4,3951.3,0.96522]
[1758901180283,0.00215172,3951.4,3951.3,1.16519054]
[1758901180483,1.72e-06,3951.6,3951.5,0.7052]
[1758901180785,0.5639,3952.0,3951.9,0.45515]
[1758901180981,0.5639,3952.0,3951.9,0.71515]
[1758901181484,0.56590735,3952.0,3951.9,0.71515]
[1758901182272,0.56590735,3952.0,3951.9,0.26]
[1758901182878,1.11090735,3952.0,3951.9,0.26]
[1758901183181,9.86669746,3952.0,3951.9,0.26]
[1758901183479,0.85338,3950.8,3950.7,3.2078]
[1758901183682,0.85338,3950.8,3950.7,3.4678]
[1758901183880,0.85338,3950.8,3950.7,0.26]
[1758901184083,4.06118,3950.8,3950.7,0.26]
[1758901184584,3.6059,3950.8,3950.7,0.71529]
[1758901184784,4.06118,3950.8,3950.7,0.26]
[1758901185787,4.15410459,3950.8,3950.7,0.26]
[1758901186677,4.06118,3950.8,3950.7,0.26]
[1758901186883,4.15411582,3950.8,3950.7,0.26]
[1758901187085,3.69883582,3950.8,3950.7,0.26]
[1758901189086,0.3981,3950.8,3950.7,0.6816]
[1758901189395,0.49109825,3950.8,3950.7,0.26]
[1758901190780,0.49109825,3950.8,3950.7,0.71529]
[1758901191583,0.49109825,3950.8,3950.3,0.00325591]
[1758901191784,0.3981,3950.4,3950.3,0.00325591]
[1758901191979,0.3981,3950.4,3950.3,0.71859591]
[1758901192788,0.9431,3950.4,3950.3,0.26325591]
[1758901192990,1.4914469,3950.4,3950.3,0.00325591]
[1758901193190,6.80297926,3950.4,3950.3,0.26325591]
[1758901193390,6.52107926,3950.4,3950.3,0.26325591]
[1758901193694,6.06574926,3950.4,3950.3,0.26325591]
[1758901194090,0.4911169,3950.4,3950.3,1.14019591]
[1758901194387,0.1658,3951.0,3950.3,1.14019591]
[1758901194388,0.3981,3950.9,3950.8,0.87688]
[1758901194585,0.3981,3951.2,3951.1,0.45524]
[1758901194785,1.0654371,3951.2,3951.1,0.71524]
[1758901195191,0.49108769,3951.2,3951.1,0.71524]
[1758901195888,0.1658,3951.5,3951.4,0.45521]
[1758901196096,0.6568847,3951.5,3951.4,0.71521]
[1758901196291,1.2311568,3951.5,3951.4,0.26]
[1758901196495,1.2311568,3951.5,3951.4,0.71521]
[1758901197689,1.7761568,3951.5,3951.4,0.26]
[1758901198000,2.2313568,3951.5,3951.4,0.26]
[1758901199199,1.7761568,3951.5,3951.4,0.71521]
[1758901199602,2.2313568,3951.5,3951.4,0.26]
[1758901199801,1.7761568,3951.5,3951.4,0.71521]
[1758901200298,1.7761568,3951.5,3951.4,1.00311]
[1758901200596,1.7761568,3951.5,3951.4,0.71521]
[1758901200795,3.2078,3951.7,3951.6,0.45519]
[1758901201001,3.96200167,3951.7,3951.6,0.9868]
[1758901201196,4.24390167,3951.7,3951.4,0.7152]
[1758901201392,1.1089,3951.5,3951.4,1.00311]
[1758901201900,1.1089,3951.5,3951.4,1.28041]
[1758901202092,1.1089,3951.5,3951.0,1.55974]
[1758901202093,0.6612,3951.4,3951.3,0.5652]
[1758901202299,0.6612,3951.4,3951.3,1.2468]
[1758901202499,0.6612,3951.4,3951.3,1.70202]
[1758901202895,0.75421199,3951.4,3951.3,1.28042]
[1758901203200,1.02891793,3951.4,3951.3,0.8252]
[1758901203399,1.48412793,3951.4,3951.3,0.26]
[1758901203586,0.5426,3951.0,3950.6,0.4248]
[1758901203793,0.5426,3951.0,3950.3,4.55197853]
[1758901203794,0.9531,3950.9,3950.8,0.99577]
[1758901203995,3.2078,3951.2,3951.1,1.42054]
[1758901204400,3.2078,3951.2,3951.1,1.68054]
[1758901204995,0.4105,3951.2,3951.1,1.68054]
[1758901205203,0.4105,3951.5,3951.4,1.42051]
[1758901205408,0.2932,3951.9,3951.8,0.99566]
[1758901205704,0.00200735,3952.0,3951.9,0.45515]
[1758901205900,0.00200735,3952.0,3951.9,4.59145]
[1758901206701,1.09600735,3952.0,3951.9,3.2078]
[1758901207009,0.00200735,3952.0,3951.9,1.64365]
[1758901207706,0.00200735,3952.0,3951.9,6.64365]
[1758901208805,0.385,3951.9,3951.7,0.45517]
[1758901209007,0.16820735,3952.0,3951.9,0.45515]
[1758901209205,0.42790735,3952.0,3951.9,0.2688]
[1758901209409,0.81290735,3952.0,3951.9,0.2688]
[1758901209704,0.64670735,3952.0,3951.9,0.9285]
[1758901209904,1.09600735,3952.0,3951.9,0.5319]
[1758901210307,1.09600735,3952.0,3951.9,0.2688]
[1758901210503,1.09600735,3952.0,3951.9,0.5319]
[1758901210897,0.9278,3951.9,3951.8,0.45516]
[1758901211101,0.9278,3951.9,3951.8,0.72396]
[1758901211604,0.9278,3951.9,3951.8,0.2688]
[1758901211799,0.385,3951.8,3951.7,1.11176]
[1758901212003,0.26170735,3952.0,3951.9,0.98705]
[1758901212205,1.09600735,3952.0,3951.9,0.98705]
[1758901212405,1.09600735,3952.0,3951.9,0.72395]
[1758901212605,1.09600735,3952.0,3951.9,0.2688]
[1758901212801,0.71100735,3952.0,3951.1,3.6044]
[1758901213001,0.6447,3951.3,3951.2,1.24713]
[1758901213207,0.9278,3951.3,3951.2,1.24713]
[1758901214017,0.9278,3951.3,3951.2,0.71523]
[1758901214514,0.9278,3951.3,3951.2,1.64373]
[1758901214722,3.2078,3951.8,3951.7,0.45518]
[1758901214910,0.55320735,3952.0,3951.9,0.45515]
[1758901215108,0.00200735,3952.0,3951.9,1.38365]
[1758901215310,0.38700735,3952.0,3951.9,1.38365]
[1758901215712,1.09600735,3952.0,3951.9,0.72395]
[1758901216217,0.64670735,3952.0,3951.9,1.38365]
[1758901216406,0.64670735,3952.0,3951.9,0.98705]
[1758901216605,0.64670735,3952.0,3951.9,1.38365]
[1758901216811,0.00200735,3952.0,3951.9,1.38365]
[1758901218511,0.00200735,3952.0,3951.9,6.38365]
[1758901219018,0.385,3953.1,3953.0,0.45503]
[1758901219211,3.2078,3953.3,3953.2,0.9869]
[1758901219212,3.8525,3953.3,3953.2,0.9869]
[1758901219416,3.2078,3953.3,3953.2,1.3835]
[1758901220115,0.00208521,3953.3,3953.2,6.05627351]
[1758901220808,0.38708521,3953.3,3953.2,0.85432905]
[1758901221013,0.00208521,3953.3,3953.2,0.85432905]
[1758901221220,0.00208521,3953.3,3953.2,6.05661538]
[1758901222020,3.2078,3954.1,3954.0,0.3966]
[1758901222238,0.1662,3954.5,3954.4,0.45487]
[1758901222416,3.2078,3955.1,3954.8,0.45481]
[1758901222716,3.66259,3955.1,3954.9,0.26]
[1758901222915,0.64590912,3955.0,3954.9,0.26]
[1758901223120,0.1662,3954.5,3954.2,0.45488]
[1758901223418,0.385,3954.4,3954.3,0.26]
[1758901224214,0.385,3954.4,3954.2,0.45488]
[1758901224423,0.385,3954.4,3954.3,0.26]
[1758901226127,0.1662,3954.0,3953.5,3.2078]
[1758901226322,0.385,3953.7,3953.6,0.26]
[1758901228121,0.385,3953.9,3953.7,0.45495]
[1758901228323,3.5928,3954.1,3954.0,0.3966]
[1758901228620,3.2078,3954.6,3954.4,0.85146]
[1758901228824,3.2078,3954.6,3954.5,0.6566]
[1758901229740,3.5928,3954.6,3954.5,0.26]
[1758901230123,3.5928,3954.6,3954.5,0.71485]
[1758901230324,3.5928,3954.6,3954.5,0.26]
[1758901230928,3.5928,3954.6,3954.5,0.71485]
[1758901231323,3.5928,3954.6,3954.5,0.26]
[1758901231519,4.04764,3954.6,3954.5,0.26]
[1758901232328,3.5928,3954.6,3954.5,0.26]
[1758901232629,4.04764,3954.6,3954.5,0.26]
[1758901233032,3.5928,3954.6,3954.5,0.26]
[1758901233331,3.5928,3954.6,3954.5,0.71485]
[1758901233929,3.5928,3954.6,3954.5,0.26]
[1758901234220,3.5928,3954.6,3954.5,0.71485]
[1758901235835,4.04764,3954.6,3954.5,0.71485]
[1758901236132,3.5928,3954.6,3954.5,0.71485]
[1758901236934,4.04764,3954.6,3954.5,0.71485]
[1758901237436,3.5928,3954.6,3954.5,0.71485]
[1758901237733,4.1298,3954.6,3954.5,0.71485]
[1758901238032,4.67652537,3954.6,3954.5,0.26]
[1758901240025,4.22168537,3954.6,3953.4,3.59]
[1758901240231,1.0974,3953.5,3953.4,0.73388]
[1758901240529,0.2655,3954.0,3953.9,1.39602]
[1758901240836,3.7448,3954.1,3954.0,0.73381]
[1758901241033,4.1447,3954.1,3954.0,0.73381]
[1758901241435,4.1447,3954.1,3954.0,0.45491]
[1758901241633,5.26301852,3954.1,3954.0,0.45491]
[1758901241834,4.23666704,3954.1,3954.0,0.45491]
[1758901242033,4.1447,3954.1,3954.0,0.73381]
[1758901242230,4.1447,3954.1,3954.0,1.39601]
[1758901242739,3.8732,3954.1,3954.0,1.39601]
[1758901243031,3.8732,3954.1,3954.0,1.01381]
[1758901243231,4.1447,3954.1,3954.0,0.73381]
[1758901243535,4.23674892,3954.1,3954.0,0.45491]
[1758901243737,4.69164892,3954.1,3954.0,0.45491]
[1758901243940,4.23674892,3954.1,3954.0,0.45491]
[1758901244233,4.80922309,3954.1,3954.0,0.45491]
[1758901244748,1.55231,3954.0,3953.9,0.26]
[1758901244938,2.21683309,3954.0,3953.9,0.26]
[1758901245835,7.21683309,3954.0,3953.9,0.26]
[1758901246145,1.39189,3953.3,3953.2,0.00272905]
[1758901246333,4.72721309,3953.3,3953.2,0.00272905]
[1758901246636,9.72721309,3953.3,3953.2,2.905e-05]
[1758901247940,4.27222309,3953.3,3953.2,2.905e-05]
[1758901249328,4.18017417,3953.3,3953.2,2.905e-05]
[1758901249532,4.27242826,3953.3,3953.2,2.905e-05]
[1758901249938,4.27242826,3953.3,3953.2,0.45502905]
[1758901250133,3.87252826,3953.3,3953.2,0.83722905]
[1758901250337,4.27242826,3953.3,3953.2,0.83722905]
[1758901250532,4.27242826,3953.3,3953.2,0.45502905]
[1758901250940,3.87252826,3953.3,3953.2,2.905e-05]
[1758901251139,3.87252826,3953.3,3953.2,0.45502905]
[1758901251540,4.27242826,3953.3,3953.2,0.45502905]
[1758901252040,4.27242826,3953.3,3953.2,2.905e-05]
[1758901252250,4.27242826,3953.3,3953.2,0.45502905]
[1758901253139,4.27238391,3953.3,3953.2,0.45502905]
[1758901253647,3.69990974,3953.3,3953.2,0.71502905]
[1758901253838,3.69989949,3953.3,3953.2,1.09722905]
[1758901254035,3.69989949,3953.3,3953.2,0.45502905]
[1758901254240,3.69989949,3953.3,3953.2,0.71502905]
[1758901255538,4.15488949,3953.3,3953.2,0.26002905]
[1758901257044,3.69989949,3953.3,3953.2,0.71502905]
[1758901259235,0.3999,3953.5,3953.2,0.26002905]
[1758901259450,0.3999,3953.5,3953.4,0.83718]
[1758901259754,3.6077,3953.7,3953.6,0.45496]
[1758901259948,3.69988907,3953.7,3953.6,0.71496]
[1758901260445,0.0252,3953.9,3953.8,0.45493]
[1758901260648,0.0252,3953.9,3953.8,0.83713]
[1758901260849,0.1605,3954.0,3953.7,0.20484819]
[1758901261040,0.3999,3953.9,3953.8,0.71493]
[1758901262038,0.5604,3954.5,3954.4,0.45486]
[1758901262244,1.10744843,3954.5,3954.4,0.26]
[1758901263043,0.3792,3954.1,3954.0,0.45491]
[1758901263246,0.3792,3954.1,3954.0,0.71491]
[1758901263946,0.1605,3954.5,3954.3,0.45488]
[1758901263947,0.3792,3954.4,3954.3,0.45488]
[1758901264147,0.47140587,3954.4,3954.3,0.83098]
[1758901264553,3.37672048,3955.0,3954.6,1.13711]
[1758901264739,1.04426257,3954.9,3954.8,0.45482]
[1758901265046,0.4714058,3954.9,3954.8,0.45482]
[1758901265350,0.00272048,3955.0,3954.9,0.83091]
[1758901265852,0.00272048,3955.0,3954.9,5.83091]
[1758901269145,0.39672048,3955.0,3954.9,0.83091]
[1758901269450,0.55602048,3955.0,3954.9,0.45481]
[1758901271243,0.55602048,3955.0,3954.9,0.71481]
[1758901271753,0.55602048,3955.0,3954.9,0.26]
[1758901271754,1.01082048,3955.0,3954.9,0.26]
[1758901272049,0.45481,3954.9,3954.7,0.45482]
[1758901272253,0.84881,3954.9,3954.8,0.26]
[1758901272648,0.394,3954.9,3954.8,0.71482]
[1758901273449,0.84881,3954.9,3954.8,0.71482]
[1758901274058,0.394,3954.9,3954.8,0.71482]
[1758901274254,0.00272048,3955.0,3954.9,0.85431]
[1758901275551,0.0252,3955.3,3955.2,0.85427]
[1758901275756,0.0252,3955.3,3955.2,9.58797484]
[1758901275959,3.6018,3956.1,3956.0,0.45468]
[1758901276149,3.6018,3956.1,3956.0,0.71468]
[1758901276345,3.6018,3956.1,3956.0,1.11418]
[1758901276656,0.39610348,3956.1,3956.0,0.71686359]
[1758901278859,0.39610348,3956.1,3956.0,0.00218359]
[1758901278860,9.05857348,3956.1,3956.0,0.00218359]
[1758901279256,0.45474,3955.6,3955.3,0.45476]
[1758901279456,0.45476,3955.3,3955.2,0.45477]
[1758901279760,0.394,3955.2,3955.1,3.66258]
[1758901279949,0.394,3955.2,3955.1,3.92258]
[1758901280354,0.394,3955.2,3955.1,3.92582415]
[1758901281860,0.1593,3955.0,3954.5,0.45485]
[1758901282065,0.84883,3954.7,3954.6,0.26]
[1758901282465,5.84883,3954.7,3954.6,0.26]
[1758901282965,5.394,3954.7,3954.6,0.26189134]
[1758901283656,5.48431577,3954.7,3954.6,0.26189134]
[1758901284562,5.48431577,3954.7,3954.0,0.45491]
[1758901284862,3.6018,3954.1,3954.0,0.45491]
[1758901285059,3.6018,3954.1,3954.0,0.71491]
[1758901285272,4.0567,3954.1,3954.0,0.71491]
[1758901285765,4.0567,3954.1,3954.0,0.7176082]
[1758901285966,3.6018,3954.1,3954.0,0.7176082]
[1758901287167,3.6018,3954.1,3954.0,0.2626982]
[1758901287367,3.69222034,3954.1,3954.0,0.2626982]
[1758901287767,4.14712034,3954.1,3954.0,0.7176082]
[1758901288961,3.69222034,3954.1,3954.0,0.7176082]
[1758901289172,3.2078,3954.1,3954.0,1.2720082]
[1758901290068,3.2078,3954.6,3954.3,0.3995]
[1758901290369,3.2078,3954.6,3954.5,1.00925]
[1758901291169,3.2078,3955.1,3955.0,0.85429]
[1758901291362,3.2982841,3955.1,3955.0,1.26919]
[1758901291557,3.2078,3955.1,3955.0,1.26919]
[1758901291868,0.45473,3955.6,3955.3,0.45475]
[1758901292067,0.48448106,3955.5,3955.4,0.26]
[1758901292364,0.48448106,3955.5,3955.4,0.71475]
[1758901292767,0.09048106,3955.5,3955.4,1.12345]
[1758901292962,3.6625,3955.8,3955.7,0.45472]
[1758901292963,3.2078,3955.8,3955.7,0.45472]
[1758901293156,3.2078,3955.8,3955.7,0.86342]
[1758901293157,3.29828411,3955.8,3955.7,0.86342]
[1758901294056,3.2078,3955.8,3955.7,0.86342]
[1758901294471,3.2078,3955.8,3955.7,0.4087]
[1758901294672,3.5856,3955.8,3955.7,0.4087]
[1758901294863,3.66251,3955.8,3955.6,0.45472]
[1758901295066,0.3778,3955.6,3955.5,0.45474]
[1758901295268,3.2078,3955.8,3955.6,0.45472]
[1758901295464,3.5856,3955.8,3955.7,0.4087]
[1758901295662,3.2078,3955.8,3955.7,0.4087]
[1758901296672,0.37990348,3956.1,3955.6,0.4087]
[1758901296972,0.46827517,3956.0,3955.9,0.45469]
[1758901297168,0.09047517,3956.0,3955.9,1.12339]
[1758901297374,0.00210348,3956.1,3956.0,0.60408]
[1758901297571,0.00210348,3956.1,3956.0,1.01278]
[1758901298672,1e-05,3956.3,3956.2,0.86336]
[1758901298977,1.13607,3958.3,3956.2,0.86336]
[1758901298978,3.2078,3957.3,3957.2,0.86324]
[1758901299165,3.2078,3957.3,3957.2,1.12324]
[1758901299676,3.21010643,3957.3,3957.2,0.67070943]
[1758901299974,3.58790643,3957.3,3957.2,0.26200943]
[1758901300762,3.21010643,3957.3,3957.2,0.67070943]
[1758901301163,0.00230643,3957.3,3957.2,0.67070943]
[1758901302669,0.00230643,3957.3,3957.2,0.41070943]
[1758901302869,0.38010643,3957.3,3957.2,0.26200943]
[1758901303064,3.58790643,3957.3,3957.2,0.26200943]
[1758901303273,8.58790643,3957.3,3957.2,0.26200943]
[1758901304175,8.67801521,3957.3,3957.2,0.00200943]
[1758901305268,8.58790643,3957.3,3957.2,0.00200943]
[1758901307377,3.58790643,3957.3,3957.2,0.00200943]
[1758901308276,4.04243643,3957.3,3957.2,0.00200943]
[1758901308479,4.04243643,3957.3,3957.2,0.45654943]
[1758901308966,4.04243643,3957.3,3957.2,0.00200943]
[1758901309982,3.58790643,3957.3,3957.2,0.45654943]
[1758901310171,3.21010643,3957.3,3957.2,0.86524943]
[1758901310679,3.21010643,3957.3,3957.2,0.41070943]
[1758901310874,3.58790643,3957.3,3957.2,0.86524943]
[1758901311082,3.21010643,3957.3,3957.2,0.86524943]
[1758901311280,3.58790643,3957.3,3957.2,0.41070943]
[1758901311571,3.58790643,3957.3,3957.2,0.86524943]
[1758901311779,3.21010643,3957.3,3957.2,0.86524943]
[1758901312178,4.04243643,3957.3,3957.2,0.86524943]
[1758901312381,3.21010643,3957.3,3957.2,0.86524943]
[1758901312975,4.04243643,3957.3,3957.2,0.86524943]
[1758901313174,3.58790643,3957.3,3957.2,0.86524943]
[1758901314080,4.04243643,3957.3,3957.2,0.86524943]
[1758901314476,3.58790643,3957.3,3957.2,0.86524943]
[1758901314877,4.04243643,3957.3,3957.2,0.45654943]
[1758901315284,4.12120643,3957.3,3957.2,1.11944943]
[1758901315777,4.57573643,3957.3,3957.2,0.00200943]
[1758901316279,4.12120643,3957.3,3957.2,0.45654943]
[1758901316488,4.12120643,3957.3,3957.2,1.37824943]
[1758901316489,3.74340643,3957.3,3957.2,1.37824943]
[1758901317582,4.57573643,3957.3,3957.2,0.71074943]
[1758901317782,4.12120643,3957.3,3957.2,0.45654943]
[1758901317984,4.12120643,3957.3,3957.2,0.71074943]
[1758901318283,4.57573643,3957.3,3957.2,0.45654943]
[1758901318879,4.57573643,3957.3,3957.2,0.00200943]
[1758901319278,4.66604701,3957.3,3957.2,0.00200943]
[1758901319473,4.66604701,3957.3,3957.2,0.45654943]
[1758901319785,4.21151701,3957.3,3957.2,0.45654943]
[1758901320177,4.12120643,3957.3,3957.2,0.66490943]
[1758901320384,4.21158411,3957.3,3957.2,0.45654943]
[1758901321185,1.00378411,3957.3,3957.2,0.45654943]
[1758901321387,1.00378411,3957.3,3957.2,0.71074943]
[1758901321588,1.00378411,3957.3,3957.2,1.11944943]
[1758901322086,1.00378411,3957.3,3957.2,0.71074943]
[1758901322384,1.00378411,3957.3,3957.2,1.10934943]
[1758901322884,1.45831411,3957.3,3957.2,1.10934943]
[1758901323077,5.23793122,3957.3,3957.2,0.45654943]
[1758901323478,4.78340122,3957.3,3957.2,0.45654943]
[1758901323680,5.23793122,3957.3,3957.2,0.71654943]
[1758901323887,4.78340122,3957.3,3957.2,0.71654943]
[1758901324189,0.9011,3956.5,3956.4,0.45463]
[1758901324386,0.3995,3956.9,3956.8,0.45459]
[1758901324584,0.66292477,3956.9,3956.8,1.35669]
[1758901324989,0.09055445,3956.9,3956.8,1.35669]
[1758901325180,0.33915445,3956.9,3956.8,1.35928803]
[1758901325491,0.99165445,3956.9,3956.8,0.71718803]
[1758901325686,2.01886401,3956.9,3956.8,0.71718803]
[1758901326184,1.56428401,3956.9,3956.8,0.71718803]
[1758901326982,2.01886401,3956.9,3956.8,0.71718803]
[1758901327400,1.56428401,3956.9,3956.8,0.71718803]
[1758901327602,2.01886401,3956.9,3956.8,0.71718803]
[1758901327795,1.56428401,3956.9,3956.8,0.98188803]
[1758901327998,1.56428401,3956.9,3956.8,1.35708803]
[1758901328305,1.16478401,3956.9,3956.8,1.62218803]
[1758901329104,1.55118401,3956.9,3956.8,1.62218803]
[1758901329303,1.55118401,3956.9,3956.8,0.71718803]
[1758901329304,4.75898401,3956.9,3956.8,0.71718803]